{"text_format":"3","workbook":"xlsx","n_sheets":2,"sheets":["مخزون المعدات","إعدادات"],"not_rendered":{"external_links":1,"defined_names":4},"read":"whole","date_system":"1900"}

{"sheet":"مخزون المعدات","index":0,"n_rows":35,"n_cols":6,"rows_kept":35,"merged":[[0,1,2,2],[0,4,0,5]]}
[]
[{"$nulls":4},"تمييز العناصر الأقدم من:"]
[{"$nulls":4},4]
[]
[null,"معرف الجهاز","اسم العنصر","معين إلى","تاريخ الإصدار","عمر العنصر"]
[null,"ITEM0001","كرسي","الموظف 1",{"$f":"TODAY()-25","v":"2012-12-08"},{"$f":"IF(tblEquipmentInventory[[#This Row],[تاريخ الإصدار]]<>\"\",TODAY()-tblEquipmentInventory[[#This Row],[تاريخ الإصدار]],\"\")","v":{"v":25,"d":"25  يوماً"}}]
[null,"ITEM0002","طابعة ليزر","الموظف 2",{"$f":"TODAY()-479","v":"2011-09-11"},{"$f":"IF(tblEquipmentInventory[[#This Row],[تاريخ الإصدار]]<>\"\",TODAY()-tblEquipmentInventory[[#This Row],[تاريخ الإصدار]],\"\")","v":{"v":479,"d":"479  يوماً"}}]
[null,"ITEM0003","ماسح ضوئي","الموظف 3",{"$f":"TODAY()-177","v":"2012-07-09"},{"$f":"IF(tblEquipmentInventory[[#This Row],[تاريخ الإصدار]]<>\"\",TODAY()-tblEquipmentInventory[[#This Row],[تاريخ الإصدار]],\"\")","v":{"v":177,"d":"177  يوماً"}}]
[null,"ITEM0004","طابعة ليزر","الموظف 7",{"$f":"TODAY()-18","v":"2012-12-15"},{"$f":"IF(tblEquipmentInventory[[#This Row],[تاريخ الإصدار]]<>\"\",TODAY()-tblEquipmentInventory[[#This Row],[تاريخ الإصدار]],\"\")","v":{"v":18,"d":"18  يوماً"}}]
[null,"ITEM0005","ماكينة صنع القهوة","الموظف 20",{"$f":"TODAY()-227","v":"2012-05-20"},{"$f":"IF(tblEquipmentInventory[[#This Row],[تاريخ الإصدار]]<>\"\",TODAY()-tblEquipmentInventory[[#This Row],[تاريخ الإصدار]],\"\")","v":{"v":227,"d":"227  يوماً"}}]
[null,"ITEM0006","ماسح ضوئي","الموظف 14",{"$f":"TODAY()-50","v":"2012-11-13"},{"$f":"IF(tblEquipmentInventory[[#This Row],[تاريخ الإصدار]]<>\"\",TODAY()-tblEquipmentInventory[[#This Row],[تاريخ الإصدار]],\"\")","v":{"v":50,"d":"50  يوماً"}}]
[null,"ITEM0007","طاولة","الموظف 4",{"$f":"TODAY()-120","v":"2012-09-04"},{"$f":"IF(tblEquipmentInventory[[#This Row],[تاريخ الإصدار]]<>\"\",TODAY()-tblEquipmentInventory[[#This Row],[تاريخ الإصدار]],\"\")","v":{"v":120,"d":"120  يوماً"}}]
[null,"ITEM0008","ماكينة تصوير","الموظف 12",{"$f":"TODAY()-499","v":"2011-08-22"},{"$f":"IF(tblEquipmentInventory[[#This Row],[تاريخ الإصدار]]<>\"\",TODAY()-tblEquipmentInventory[[#This Row],[تاريخ الإصدار]],\"\")","v":{"v":499,"d":"499  يوماً"}}]
[null,"ITEM0009","جهاز عرض إضافي","الموظف 8",{"$f":"TODAY()-30","v":"2012-12-03"},{"$f":"IF(tblEquipmentInventory[[#This Row],[تاريخ الإصدار]]<>\"\",TODAY()-tblEquipmentInventory[[#This Row],[تاريخ الإصدار]],\"\")","v":{"v":30,"d":"30  يوماً"}}]
[null,"ITEM0010","لوح معلومات","الموظف 19",{"$f":"TODAY()-50","v":"2012-11-13"},{"$f":"IF(tblEquipmentInventory[[#This Row],[تاريخ الإصدار]]<>\"\",TODAY()-tblEquipmentInventory[[#This Row],[تاريخ الإصدار]],\"\")","v":{"v":50,"d":"50  يوماً"}}]
[null,"ITEM0011","ماكينة تصوير","الموظف 12",{"$f":"TODAY()-450","v":"2011-10-10"},{"$f":"IF(tblEquipmentInventory[[#This Row],[تاريخ الإصدار]]<>\"\",TODAY()-tblEquipmentInventory[[#This Row],[تاريخ الإصدار]],\"\")","v":{"v":450,"d":"450  يوماً"}}]
[null,"ITEM0012","القرطاسية","الموظف 18",{"$f":"TODAY()-420","v":"2011-11-09"},{"$f":"IF(tblEquipmentInventory[[#This Row],[تاريخ الإصدار]]<>\"\",TODAY()-tblEquipmentInventory[[#This Row],[تاريخ الإصدار]],\"\")","v":{"v":420,"d":"420  يوماً"}}]
[null,"ITEM0013","جهاز عرض إضافي","الموظف 8",{"$f":"TODAY()-250","v":"2012-04-27"},{"$f":"IF(tblEquipmentInventory[[#This Row],[تاريخ الإصدار]]<>\"\",TODAY()-tblEquipmentInventory[[#This Row],[تاريخ الإصدار]],\"\")","v":{"v":250,"d":"250  يوماً"}}]
[null,"ITEM0014","ماكينة صنع القهوة","الموظف 9",{"$f":"TODAY()-45","v":"2012-11-18"},{"$f":"IF(tblEquipmentInventory[[#This Row],[تاريخ الإصدار]]<>\"\",TODAY()-tblEquipmentInventory[[#This Row],[تاريخ الإصدار]],\"\")","v":{"v":45,"d":"45  يوماً"}}]
[null,"ITEM0015","القرطاسية","الموظف 13",{"$f":"TODAY()-502","v":"2011-08-19"},{"$f":"IF(tblEquipmentInventory[[#This Row],[تاريخ الإصدار]]<>\"\",TODAY()-tblEquipmentInventory[[#This Row],[تاريخ الإصدار]],\"\")","v":{"v":502,"d":"502  يوماً"}}]
[null,"ITEM0016","ماسح ضوئي","الموظف 1",{"$f":"TODAY()-350","v":"2012-01-18"},{"$f":"IF(tblEquipmentInventory[[#This Row],[تاريخ الإصدار]]<>\"\",TODAY()-tblEquipmentInventory[[#This Row],[تاريخ الإصدار]],\"\")","v":{"v":350,"d":"350  يوماً"}}]
[null,"ITEM0017","ماكينة تصوير","الموظف 19",{"$f":"TODAY()-125","v":"2012-08-30"},{"$f":"IF(tblEquipmentInventory[[#This Row],[تاريخ الإصدار]]<>\"\",TODAY()-tblEquipmentInventory[[#This Row],[تاريخ الإصدار]],\"\")","v":{"v":125,"d":"125  يوماً"}}]
[null,"ITEM0018","لوح معلومات","الموظف 15",{"$f":"TODAY()-90","v":"2012-10-04"},{"$f":"IF(tblEquipmentInventory[[#This Row],[تاريخ الإصدار]]<>\"\",TODAY()-tblEquipmentInventory[[#This Row],[تاريخ الإصدار]],\"\")","v":{"v":90,"d":"90  يوماً"}}]
[null,"ITEM0019","كرسي","الموظف 16",{"$f":"TODAY()-730","v":"2011-01-03"},{"$f":"IF(tblEquipmentInventory[[#This Row],[تاريخ الإصدار]]<>\"\",TODAY()-tblEquipmentInventory[[#This Row],[تاريخ الإصدار]],\"\")","v":{"v":730,"d":"730  يوماً"}}]
[null,"ITEM0020","قطعة قماش للتنظيف","الموظف 3",{"$f":"TODAY()-540","v":"2011-07-12"},{"$f":"IF(tblEquipmentInventory[[#This Row],[تاريخ الإصدار]]<>\"\",TODAY()-tblEquipmentInventory[[#This Row],[تاريخ الإصدار]],\"\")","v":{"v":540,"d":"540  يوماً"}}]
[null,"ITEM0021","طابعة ليزر","الموظف 7",{"$f":"TODAY()-18","v":"2012-12-15"},{"$f":"IF(tblEquipmentInventory[[#This Row],[تاريخ الإصدار]]<>\"\",TODAY()-tblEquipmentInventory[[#This Row],[تاريخ الإصدار]],\"\")","v":{"v":18,"d":"18  يوماً"}}]
[null,"ITEM0022","كمبيوتر محمول","الموظف 8",{"$f":"TODAY()-283","v":"2012-03-25"},{"$f":"IF(tblEquipmentInventory[[#This Row],[تاريخ الإصدار]]<>\"\",TODAY()-tblEquipmentInventory[[#This Row],[تاريخ الإصدار]],\"\")","v":{"v":283,"d":"283  يوماً"}}]
[null,"ITEM0023","القرطاسية","الموظف 9",{"$f":"TODAY()-479","v":"2011-09-11"},{"$f":"IF(tblEquipmentInventory[[#This Row],[تاريخ الإصدار]]<>\"\",TODAY()-tblEquipmentInventory[[#This Row],[تاريخ الإصدار]],\"\")","v":{"v":479,"d":"479  يوماً"}}]
[null,"ITEM0024","طابعة ليزر","الموظف 19",{"$f":"TODAY()-355","v":"2012-01-13"},{"$f":"IF(tblEquipmentInventory[[#This Row],[تاريخ الإصدار]]<>\"\",TODAY()-tblEquipmentInventory[[#This Row],[تاريخ الإصدار]],\"\")","v":{"v":355,"d":"355  يوماً"}}]
[null,"ITEM0025","طاولة","الموظف 7",{"$f":"TODAY()-28","v":"2012-12-05"},{"$f":"IF(tblEquipmentInventory[[#This Row],[تاريخ الإصدار]]<>\"\",TODAY()-tblEquipmentInventory[[#This Row],[تاريخ الإصدار]],\"\")","v":{"v":28,"d":"28  يوماً"}}]
[null,"ITEM0026","لوح معلومات","الموظف 8",{"$f":"TODAY()-28","v":"2012-12-05"},{"$f":"IF(tblEquipmentInventory[[#This Row],[تاريخ الإصدار]]<>\"\",TODAY()-tblEquipmentInventory[[#This Row],[تاريخ الإصدار]],\"\")","v":{"v":28,"d":"28  يوماً"}}]
[null,"ITEM0027","كمبيوتر محمول","الموظف 19",{"$f":"TODAY()-736","v":"2010-12-28"},{"$f":"IF(tblEquipmentInventory[[#This Row],[تاريخ الإصدار]]<>\"\",TODAY()-tblEquipmentInventory[[#This Row],[تاريخ الإصدار]],\"\")","v":{"v":736,"d":"736  يوماً"}}]
[null,"ITEM0028","طاولة","الموظف 12",{"$f":"TODAY()-68","v":"2012-10-26"},{"$f":"IF(tblEquipmentInventory[[#This Row],[تاريخ الإصدار]]<>\"\",TODAY()-tblEquipmentInventory[[#This Row],[تاريخ الإصدار]],\"\")","v":{"v":68,"d":"68  يوماً"}}]
[null,"ITEM0029","ماسح ضوئي","الموظف 14",{"$f":"TODAY()-67","v":"2012-10-27"},{"$f":"IF(tblEquipmentInventory[[#This Row],[تاريخ الإصدار]]<>\"\",TODAY()-tblEquipmentInventory[[#This Row],[تاريخ الإصدار]],\"\")","v":{"v":67,"d":"67  يوماً"}}]
[null,"ITEM0030","ماكينة صنع القهوة","الموظف 3",{"$f":"TODAY()-149","v":"2012-08-06"},{"$f":"IF(tblEquipmentInventory[[#This Row],[تاريخ الإصدار]]<>\"\",TODAY()-tblEquipmentInventory[[#This Row],[تاريخ الإصدار]],\"\")","v":{"v":149,"d":"149  يوماً"}}]

{"sheet":"إعدادات","index":1,"n_rows":23,"n_cols":4,"rows_kept":23}
[]
[]
[null,"الموظفون",null,"العناصر"]
[null,"الموظف 1",null,"كرسي"]
[null,"الموظف 2",null,"ماكينة صنع القهوة"]
[null,"الموظف 3",null,"ماكينة تصوير"]
[null,"الموظف 4",null,"كمبيوتر سطح مكتب"]
[null,"الموظف 5",null,"قطعة قماش للتنظيف"]
[null,"الموظف 6",null,"جهاز عرض إضافي"]
[null,"الموظف 7",null,"طابعة ضخ الحبر"]
[null,"الموظف 8",null,"كمبيوتر محمول"]
[null,"الموظف 9",null,"طابعة ليزر"]
[null,"الموظف 10",null,"أقلام تمييز (ثلاثة)"]
[null,"الموظف 11",null,"ماسح ضوئي"]
[null,"الموظف 12",null,"القرطاسية"]
[null,"الموظف 13",null,"طاولة"]
[null,"الموظف 14",null,"محرك أقراص USB"]
[null,"الموظف 15",null,"لوح معلومات"]
[null,"الموظف 16"]
[null,"الموظف 17"]
[null,"الموظف 18"]
[null,"الموظف 19"]
[null,"الموظف 20"]